bitfinex/quotes_BTCUSD_20250212
["timestamp","ask_amount","ask_price","bid_price","bid_amount"]
[1739342524213,0.25427779,95974.0,95964.0,0.16250624]
[1739342524570,0.09998579,95974.0,95964.0,0.16250624]
[1739342524784,0.002,95973.0,95965.0,0.156305]
[1739342525208,0.09598579,95974.0,95965.0,0.156305]
[1739342525548,0.09598579,95974.0,95964.0,0.00619924]
[1739342525722,0.09598579,95974.0,95966.0,0.156305]
[1739342526620,0.004,95973.0,95966.0,0.156305]
[1739342527150,0.09598579,95974.0,95966.0,0.156305]
[1739342527297,0.004,95974.0,95966.0,0.156305]
[1739342527525,0.006,95974.0,95967.0,0.00619922]
[1739342527701,0.002,95974.0,95971.0,0.0778]
[1739342527900,0.002,95973.0,95971.0,0.0778]
[1739342528123,0.006,95973.0,95971.0,0.0778]
[1739342528324,0.004,95973.0,95971.0,0.0778]
[1739342529493,0.002,95974.0,95971.0,0.0778]
[1739342529902,0.006,95974.0,95971.0,0.0778]
[1739342530739,0.001,95973.0,95971.0,0.0778]
[1739342530987,0.34058033,95978.0,95972.0,0.208394]
[1739342531160,0.001,95974.0,95971.0,0.0778]
[1739342531372,0.002,95974.0,95973.0,0.364684]
[1739342531683,0.002,95974.0,95973.0,0.37088108]
[1739342532016,0.002,95974.0,95973.0,0.50358108]
[1739342532236,0.001,95974.0,95973.0,0.50358108]
[1739342533871,0.3256,95978.0,95977.0,0.156287]
[1739342535118,0.3276,95978.0,95977.0,0.16248404]
[1739342535322,0.002,95978.0,95977.0,0.16248404]
[1739342535713,0.004,95978.0,95977.0,0.16248404]
[1739342540843,0.004,95978.0,95977.0,0.00619704]
[1739342540996,0.004,95978.0,95977.0,0.16248404]
[1739342542443,0.004,95978.0,95977.0,0.00619704]
[1739342542829,0.004,95978.0,95973.0,0.1327]
[1739342543040,0.004,95978.0,95977.0,0.00617932]
[1739342543273,0.004,95978.0,95973.0,0.1327]
[1739342543448,0.004,95978.0,95975.0,0.156289]
[1739342543706,0.004,95978.0,95973.0,0.1327]
[1739342543904,0.002,95978.0,95976.0,0.00617933]
[1739342544077,0.004,95978.0,95976.0,0.00617933]
[1739342544309,0.004,95978.0,95974.0,0.156291]
[1739342544511,0.002,95978.0,95974.0,0.156291]
[1739342544898,0.002,95978.0,95975.0,0.15629]
[1739342545279,0.004,95978.0,95973.0,0.083]
[1739342545689,0.004,95978.0,95974.0,0.156291]
[1739342546304,0.002,95978.0,95974.0,0.156291]
[1739342546603,0.004,95978.0,95975.0,0.00617934]
[1739342546766,0.006,95978.0,95975.0,0.00617934]
[1739342546965,0.006,95978.0,95973.0,0.083]
[1739342547188,0.006,95978.0,95976.0,0.00617933]
[1739342547350,0.006,95978.0,95975.0,0.00022386]
[1739342547547,0.0001065,95979.0,95977.0,0.00617932]
[1739342547748,0.002,95978.0,95975.0,0.00022386]
[1739342548141,0.004,95978.0,95975.0,0.00022386]
[1739342549413,0.002,95978.0,95975.0,0.00022386]
[1739342550791,0.004,95978.0,95975.0,0.00022386]
[1739342555177,0.30434079,95990.0,95975.0,0.00022386]
[1739342555364,0.364628,95988.0,95975.0,0.00022386]
[1739342555520,0.10270365,95989.0,95975.0,0.00022386]
[1739342555721,0.156276,95984.0,95975.0,0.00022386]
[1739342556393,0.156276,95984.0,95976.0,0.00618903]
[1739342557013,0.159276,95984.0,95976.0,0.00618903]
[1739342557426,0.156276,95984.0,95976.0,0.00618903]
[1739342557686,0.165276,95984.0,95976.0,0.00618903]
[1739342557880,0.009,95984.0,95977.0,0.02457069]
[1739342558073,0.009,95984.0,95977.0,0.18085569]
[1739342558658,0.009,95984.0,95977.0,0.02457069]
[1739342558880,0.003,95984.0,95978.0,0.156285]
[1739342559262,0.006,95984.0,95978.0,0.156285]
[1739342559477,0.0061066,95984.0,95978.0,0.156285]
[1739342559673,0.0061066,95984.0,95977.0,0.208383]
[1739342559674,0.0031066,95984.0,95977.0,0.208383]
[1739342559900,0.0031066,95984.0,95979.0,0.00618697]
[1739342560475,0.0001066,95984.0,95979.0,0.00618697]
[1739342560695,0.0031066,95984.0,95976.0,0.156287]
[1739342562105,0.0031066,95984.0,95977.0,0.00178366]
[1739342562322,0.0001066,95984.0,95977.0,0.00178366]
[1739342562718,0.0041066,95984.0,95977.0,0.00178366]
[1739342562929,0.0061066,95984.0,95977.0,0.00178366]
[1739342563085,0.0021066,95984.0,95977.0,0.00178366]
[1739342563289,0.0041066,95984.0,95977.0,0.00178366]
[1739342563529,0.0061066,95984.0,95978.0,0.00746456]
[1739342563960,0.0061066,95984.0,95979.0,0.156284]
[1739342564135,0.0061066,95984.0,95979.0,0.15806401]
[1739342564879,0.0061066,95984.0,95979.0,0.00178001]
[1739342565248,0.0061066,95984.0,95979.0,0.15806301]
[1739342565401,0.0021066,95984.0,95979.0,0.15806301]
[1739342565611,0.0061066,95984.0,95980.0,0.156282]
[1739342565810,0.0041066,95984.0,95980.0,0.15806416]
[1739342566138,0.0021066,95984.0,95980.0,0.15806416]
[1739342566584,0.0061066,95984.0,95980.0,0.15806416]
[1739342566883,0.0041066,95984.0,95980.0,0.00178216]
[1739342567082,0.0001066,95984.0,95981.0,0.00745805]
[1739342567288,0.0021066,95984.0,95981.0,0.00745805]
[1739342567748,0.0021066,95984.0,95979.0,0.156283]
[1739342567975,0.0061066,95984.0,95979.0,0.156283]
[1739342568151,0.0061066,95984.0,95977.0,0.208381]
[1739342568359,0.0061066,95984.0,95979.0,0.156282]
[1739342568897,0.0041066,95984.0,95979.0,0.156282]
[1739342569121,0.0021066,95984.0,95980.0,0.156281]
[1739342569561,0.0061066,95984.0,95980.0,0.156281]
[1739342569674,0.0081066,95984.0,95977.0,0.208381]
[1739342569895,0.0081066,95984.0,95979.0,0.156283]
[1739342570092,0.0041066,95984.0,95979.0,0.156283]
[1739342570395,0.0081066,95984.0,95979.0,0.156283]
[1739342570630,0.0041066,95984.0,95980.0,0.156282]
[1739342570826,0.0041066,95984.0,95980.0,0.16374222]
[1739342571061,0.0041066,95984.0,95980.0,0.00746022]
[1739342571357,0.02015458,95987.0,95980.0,0.00746022]
[1739342571564,0.02015458,95987.0,95979.0,0.00022365]
[1739342571784,0.0001065,95985.0,95981.0,0.00745805]
[1739342572204,0.002,95984.0,95979.0,0.00022365]
[1739342572403,0.0001065,95985.0,95980.0,0.00746022]
[1739342572560,0.004,95984.0,95980.0,0.16551212]
[1739342572761,0.004,95984.0,95980.0,0.00923112]
[1739342572958,0.1563805,95985.0,95980.0,0.00923112]
[1739342572959,0.0001065,95985.0,95980.0,0.00923112]
[1739342573356,0.004,95984.0,95980.0,0.00923112]
[1739342573760,0.0021065,95985.0,95980.0,0.00923112]
[1739342574413,0.15628,95981.0,95980.0,0.00923112]
[1739342574592,0.15628,95981.0,95979.0,0.00022365]
[1739342575399,0.20837,95983.0,95979.0,0.00022365]
[1739342575627,0.156279,95982.0,95979.0,0.00022365]
[1739342575939,0.001,95981.0,95979.0,0.00022365]
[1739342576135,0.15628,95981.0,95979.0,0.00022365]
[1739342576538,0.15728,95981.0,95979.0,0.00022365]
[1739342577122,0.001,95981.0,95979.0,0.00022365]
[1739342577727,0.001,95981.0,95980.0,0.00923112]
[1739342578130,0.001,95981.0,95979.0,0.00022365]
[1739342578555,0.001,95981.0,95980.0,0.00923112]
[1739342578757,0.156279,95982.0,95979.0,0.00022365]
[1739342579222,0.001,95981.0,95980.0,0.00923112]
[1739342579570,0.001,95981.0,95979.0,0.00022365]
[1739342579750,0.001,95981.0,95980.0,0.0017709]
[1739342579956,0.156279,95982.0,95979.0,0.00022365]
[1739342580152,0.157279,95982.0,95979.0,0.00022365]
[1739342580360,0.157279,95982.0,95980.0,0.0017709]
[1739342580701,0.156279,95982.0,95979.0,0.00022365]
[1739342581203,0.156279,95982.0,95980.0,0.0017709]
[1739342581403,0.001,95982.0,95980.0,0.0017709]
[1739342581539,0.001,95982.0,95979.0,0.00022365]
[1739342581766,0.001,95982.0,95980.0,0.0017709]
[1739342581964,0.25878165,95983.0,95980.0,0.0017709]
[1739342582329,0.001,95982.0,95980.0,0.0017709]
[1739342582524,0.001,95982.0,95979.0,0.00022365]
[1739342582762,0.001,95982.0,95981.0,0.00177305]
[1739342582932,0.001,95982.0,95979.0,0.00022365]
[1739342583134,0.002,95982.0,95981.0,0.00177305]
[1739342583355,0.002,95982.0,95980.0,0.0017709]
[1739342583556,0.001,95982.0,95981.0,0.00177305]
[1739342584045,0.002,95982.0,95981.0,0.00177305]
[1739342584251,0.002,95982.0,95979.0,0.00022365]
[1739342584458,0.002,95982.0,95980.0,0.0017709]
[1739342584665,0.002,95982.0,95981.0,0.17965084]
[1739342584860,0.001,95982.0,95981.0,0.17965084]
[1739342585287,0.002,95982.0,95981.0,0.18142389]
[1739342585467,0.001,95982.0,95981.0,0.25662389]
[1739342585849,0.0001065,95985.0,95984.0,0.156276]
[1739342586048,0.0001065,95985.0,95984.0,0.15805551]
[1739342587657,0.0001065,95985.0,95984.0,0.16005551]
[1739342588177,0.0001065,95985.0,95984.0,0.00377951]
[1739342589615,0.0001065,95985.0,95984.0,0.00177951]
[1739342589970,0.0001065,95985.0,95984.0,0.0047738]
[1739342592722,0.0001065,95985.0,95984.0,0.05398935]
[1739342592923,0.0001065,95985.0,95984.0,0.0047738]
[1739342594733,0.0001065,95985.0,95984.0,0.1610498]
[1739342595723,0.0001065,95985.0,95984.0,0.2362498]
[1739342608283,0.0001065,95985.0,95984.0,0.23647345]
[1739342614321,0.09796056,95997.0,95984.0,0.08019745]
[1739342614528,0.09796056,95997.0,95985.0,0.208364]
[1739342614735,0.156254,95997.0,95988.0,0.156269]
[1739342615161,0.156254,95997.0,95989.0,0.0015316]
[1739342615363,0.157254,95997.0,95989.0,0.0015316]
[1739342615892,0.15831397,95997.0,95989.0,0.0015316]
[1739342616542,0.15631397,95997.0,95989.0,0.0015316]
[1739342617297,0.15731397,95997.0,95989.0,0.0015316]
[1739342617701,0.15631397,95997.0,95989.0,0.0015316]
[1739342618097,0.15931397,95997.0,95989.0,0.0015316]
[1739342618311,0.156256,95996.0,95989.0,0.0015316]
[1739342619636,0.158256,95996.0,95989.0,0.0015316]
[1739342621136,0.159256,95996.0,95989.0,0.0015316]
[1739342621323,0.003,95996.0,95989.0,0.0015316]
[1739342622084,0.0031065,95996.0,95989.0,0.0015316]
[1739342622768,0.0031065,95996.0,95989.0,0.1577986]
[1739342622963,0.0031065,95996.0,95989.0,0.156267]
[1739342623142,0.0031065,95996.0,95990.0,0.00153375]
[1739342623553,0.1593635,95996.0,95990.0,0.00153375]
[1739342623870,0.1593635,95996.0,95988.0,0.156268]
[1739342624071,0.1593635,95996.0,95989.0,0.0015316]
[1739342624268,0.1583635,95996.0,95989.0,0.0015316]
[1739342624498,0.1593635,95996.0,95989.0,0.0015316]
[1739342624665,0.1593635,95996.0,95989.0,0.1577986]
[1739342625000,0.1583635,95996.0,95989.0,0.1577986]
[1739342625202,0.0001065,95996.0,95989.0,0.1577986]
[1739342625588,0.0021065,95996.0,95989.0,0.1577986]
[1739342625905,0.0031065,95996.0,95989.0,0.1577986]
[1739342626118,0.0051065,95996.0,95989.0,0.1577986]
[1739342626287,0.0051065,95996.0,95989.0,0.0015316]
[1739342626497,0.0051065,95996.0,95988.0,0.156268]
[1739342626694,0.0051065,95996.0,95984.0,0.07542365]
[1739342626695,0.1613635,95996.0,95989.0,0.1577986]
[1739342627340,0.1603635,95996.0,95989.0,0.1577986]
[1739342627545,0.0041065,95996.0,95990.0,0.156266]
[1739342627785,0.0051065,95996.0,95990.0,0.156266]
[1739342627963,0.0051065,95996.0,95991.0,0.0015359]
[1739342628114,0.156259,95995.0,95991.0,0.0015359]
[1739342628313,0.0001065,95996.0,95991.0,0.0015359]
[1739342628534,0.0031065,95996.0,95988.0,0.156267]
[1739342629071,0.0021065,95996.0,95989.0,0.0015316]
[1739342629228,0.001,95995.0,95989.0,0.0015316]
[1739342631117,0.0001065,95996.0,95989.0,0.0015316]
[1739342631318,0.0001065,95996.0,95989.0,0.1577976]
[1739342631543,0.002,95995.0,95989.0,0.1577976]
[1739342632435,0.0011065,95996.0,95989.0,0.1577976]
[1739342632976,0.0021065,95996.0,95989.0,0.1577976]
[1739342633198,0.001,95995.0,95989.0,0.1577976]
[1739342634217,0.001,95995.0,95989.0,0.15802125]
[1739342634734,0.0001065,95996.0,95989.0,0.15802125]
[1739342634871,0.0011065,95996.0,95990.0,0.00870173]
[1739342635411,0.002,95995.0,95990.0,0.00870173]
[1739342635847,0.003,95995.0,95990.0,0.00870173]
[1739342636028,0.001,95995.0,95990.0,0.00870173]
[1739342636217,0.0001065,95996.0,95990.0,0.00870173]
[1739342636427,0.0021065,95996.0,95990.0,0.00870173]
[1739342636631,0.0031065,95996.0,95990.0,0.00870173]
[1739342636939,0.156259,95995.0,95990.0,0.00870173]
[1739342637143,0.002,95995.0,95990.0,0.00870173]
[1739342637342,0.158259,95995.0,95989.0,0.00022365]
[1739342637641,0.158259,95995.0,95991.0,0.00134427]
[1739342637779,0.158259,95995.0,95990.0,0.00134211]
[1739342637985,0.158259,95995.0,95992.0,0.00134303]
[1739342638350,0.157259,95995.0,95989.0,0.00022365]
[1739342638550,0.001,95995.0,95989.0,0.00022365]
[1739342638844,0.001,95995.0,95990.0,0.00133872]
[1739342639050,0.0021065,95996.0,95990.0,0.00133872]
[1739342639284,0.003,95995.0,95990.0,0.00133872]
[1739342639508,0.001,95995.0,95990.0,0.00133872]
[1739342639685,0.002,95995.0,95990.0,0.00133872]
[1739342640127,0.1563635,95996.0,95990.0,0.00133872]
[1739342640330,0.1583635,95996.0,95990.0,0.00133872]
[1739342640611,0.0021065,95996.0,95990.0,0.00133872]
[1739342641432,0.157258,95995.0,95990.0,0.00133872]
[1739342641789,0.156264,95991.0,95990.0,0.00133872]
[1739342642035,0.156264,95991.0,95989.0,0.00022365]
[1739342642195,0.156262,95993.0,95989.0,0.00022365]
[1739342642402,0.156264,95992.0,95989.0,0.00022365]
[1739342643182,0.001,95991.0,95989.0,0.00022365]
[1739342643643,0.001,95995.0,95989.0,0.00022365]
[1739342643843,0.001,95992.0,95989.0,0.00022365]
[1739342644262,0.156261,95994.0,95989.0,0.00022365]
[1739342644415,0.001,95992.0,95989.0,0.00022365]
[1739342645044,0.2084485,95996.0,95989.0,0.00022365]
[1739342645444,0.001,95991.0,95989.0,0.00022365]
[1739342645904,0.15626,95994.0,95989.0,0.00022365]
[1739342646090,0.001,95992.0,95989.0,0.00022365]
[1739342646642,0.001,95991.0,95989.0,0.00022365]
[1739342646844,0.15626,95994.0,95989.0,0.00022365]
[1739342647096,0.15826,95994.0,95989.0,0.00022365]
[1739342647481,0.2094485,95996.0,95989.0,0.00022365]
[1739342647681,0.15626,95994.0,95989.0,0.00022365]
[1739342648004,0.15726,95994.0,95989.0,0.00022365]
[1739342648354,0.15626,95994.0,95989.0,0.00022365]
[1739342648769,0.001,95991.0,95989.0,0.00022365]
[1739342648993,0.156259,95994.0,95989.0,0.00022365]
[1739342649313,0.158259,95994.0,95989.0,0.00022365]
[1739342649635,0.156259,95994.0,95989.0,0.00022365]
[1739342649981,0.001,95991.0,95989.0,0.00022365]
[1739342650189,0.156259,95994.0,95989.0,0.00022365]
[1739342650402,0.158259,95994.0,95989.0,0.00022365]
[1739342650801,0.159259,95994.0,95989.0,0.00022365]
[1739342651568,0.003,95994.0,95989.0,0.00022365]
[1739342657026,0.00223349,95994.0,95989.0,0.00022365]
[1739342659180,0.15849349,95994.0,95989.0,0.00022365]
[1739342660711,0.07707575,95996.0,95989.0,0.00022365]
[1739342660920,0.156258,95995.0,95989.0,0.00022365]
[1739342661303,0.15642247,95997.0,95989.0,0.00022365]
[1739342662044,0.001,95996.0,95989.0,0.00022365]
[1739342662570,0.00016647,95997.0,95989.0,0.00022365]
[1739342662888,0.15642147,95997.0,95989.0,0.00022365]
[1739342664059,0.00016647,95997.0,95989.0,0.00022365]
[1739342664467,0.15642147,95997.0,95990.0,0.00133946]
[1739342664915,0.00016647,95997.0,95990.0,0.0786]
[1739342665231,0.00016647,95997.0,95991.0,0.00134161]
[1739342665638,0.00016647,95997.0,95996.0,0.156256]
[1739342665768,0.00016647,95997.0,95996.0,0.234856]
[1739342666175,0.00016647,95997.0,95996.0,0.23620838]
[1739342667243,0.00016647,95997.0,95996.0,0.30634098]
[1739342667703,0.00016647,95997.0,95996.0,0.23620838]
[1739342668664,0.00016647,95997.0,95996.0,0.23920838]
[1739342669652,0.00016647,95997.0,95996.0,0.24020838]
[1739342670200,0.00016647,95997.0,95996.0,0.23720838]
[1739342670681,0.00016647,95997.0,95996.0,0.24120838]
[1739342671095,0.00016647,95997.0,95996.0,0.23720838]
[1739342671503,0.00016647,95997.0,95996.0,0.24020838]
[1739342671844,0.00016647,95997.0,95996.0,0.24120838]
[1739342672538,0.00016647,95997.0,95996.0,0.24020838]
[1739342672891,0.00016647,95997.0,95996.0,0.24220838]
[1739342673087,0.00016647,95997.0,95996.0,0.23820838]
[1739342673502,0.00016647,95997.0,95996.0,0.24420838]
[1739342675172,0.00016647,95997.0,95996.0,0.31314098]
[1739342675474,0.00016647,95997.0,95996.0,0.31614098]
[1739342675815,0.00016647,95997.0,95996.0,0.31014098]
[1739342676278,0.00016647,95997.0,95996.0,0.30714098]
[1739342676489,0.00016647,95997.0,95996.0,0.31014098]
[1739342676779,0.00016647,95997.0,95996.0,0.35764098]
[1739342677482,0.00016647,95997.0,95996.0,0.36664098]
[1739342677720,0.00016647,95997.0,95996.0,0.36364098]
[1739342677951,0.00016647,95997.0,95996.0,0.35464098]
[1739342678212,0.00016647,95997.0,95996.0,0.36664098]
[1739342678448,0.00016647,95997.0,95996.0,0.36464098]
[1739342678661,0.00016647,95997.0,95996.0,0.36764098]
[1739342680685,0.00016647,95997.0,95996.0,0.35764098]
[1739342680916,0.00016647,95997.0,95996.0,0.60714463]
[1739342681124,0.00016647,95997.0,95996.0,0.62514463]
[1739342681329,0.00016647,95997.0,95996.0,0.62014463]
[1739342681534,0.00016647,95997.0,95996.0,0.60714463]
[1739342681793,0.00016647,95997.0,95996.0,0.61214463]
[1739342682012,0.00016647,95997.0,95996.0,0.62114463]
[1739342682216,0.00016647,95997.0,95996.0,0.62714463]
[1739342682443,0.00016647,95997.0,95996.0,0.61314463]
[1739342682869,0.00016647,95997.0,95996.0,0.61336849]
[1739342683786,0.00016647,95997.0,95996.0,0.62836849]
[1739342684962,0.00016647,95997.0,95996.0,0.61336849]
[1739342685150,0.09598579,96030.0,96002.0,0.0832]
[1739342685361,0.09605959,96030.0,96004.0,0.1307]
[1739342685538,0.09605959,96030.0,96024.0,0.15621]
[1739342685756,7.38e-05,96030.0,96024.0,0.15621]
[1739342685954,7.38e-05,96030.0,96025.0,0.00119772]
[1739342686257,7.38e-05,96030.0,96027.0,0.208274]
[1739342686625,7.38e-05,96030.0,96028.0,0.0012039]
[1739342686832,7.38e-05,96030.0,96029.0,0.156202]
[1739342687217,7.38e-05,96030.0,96029.0,0.15740663]
[1739342688621,7.38e-05,96030.0,96029.0,0.15840663]
[1739342694225,7.38e-05,96030.0,96029.0,0.15740663]
[1739342694422,7.38e-05,96030.0,96029.0,0.19046314]
[1739342694650,7.38e-05,96030.0,96029.0,0.26916314]
[1739342695056,7.38e-05,96030.0,96029.0,0.31456314]
[1739342695232,7.38e-05,96030.0,96029.0,0.31656314]
[1739342695452,7.38e-05,96030.0,96029.0,0.28350663]
[1739342696377,7.38e-05,96030.0,96029.0,0.28150663]
[1739342696591,7.38e-05,96030.0,96029.0,0.28250663]
[1739342696790,7.38e-05,96030.0,96029.0,0.28350663]
[1739342697170,7.38e-05,96030.0,96029.0,0.28150663]
[1739342697372,7.38e-05,96030.0,96029.0,0.35131249]
[1739342697557,7.38e-05,96030.0,96029.0,0.3679296]
[1739342697746,7.38e-05,96030.0,96029.0,0.29812374]
[1739342698389,0.25215379,96050.0,96029.0,0.29812374]
[1739342698390,0.15617,96049.0,96029.0,0.14192174]
[1739342698710,0.00016182,96044.0,96040.0,0.156183]
[1739342699063,0.00016182,96044.0,96041.0,0.00859108]
[1739342699262,0.00016182,96044.0,96041.0,0.00972414]
[1739342700303,0.00016182,96044.0,96041.0,0.16590714]
[1739342700512,0.00016182,96044.0,96043.0,0.15618]
[1739342700910,0.00016182,96044.0,96043.0,0.00113737]
[1739342701433,0.00016182,96044.0,96043.0,0.00858675]
[1739342701854,0.00016182,96044.0,96037.0,0.208251]
[1739342703311,0.00016182,96044.0,96040.0,0.156184]
[1739342703755,0.00016182,96044.0,96039.0,0.156186]
[1739342703961,0.00016182,96044.0,96040.0,0.156183]
[1739342704164,0.00016182,96044.0,96040.0,0.208246]
[1739342704375,0.00016182,96044.0,96043.0,0.15618]
[1739342704632,0.00016182,96044.0,96040.0,0.208246]
[1739342704810,0.00016182,96044.0,96043.0,0.00858675]
[1739342705008,0.00016182,96044.0,96041.0,0.156183]
[1739342705148,0.00016182,96044.0,96043.0,0.00858675]
[1739342705346,0.00016182,96044.0,96041.0,0.156183]
[1739342705550,0.00016182,96044.0,96042.0,0.00858892]
[1739342705751,0.00016182,96044.0,96041.0,0.156183]
[1739342705953,0.00016182,96044.0,96042.0,0.00858892]
[1739342706160,0.00016182,96044.0,96039.0,0.076]
[1739342706397,0.00016182,96044.0,96043.0,0.15618]
[1739342706834,0.00016182,96044.0,96043.0,0.16476675]
[1739342707394,0.00016182,96044.0,96043.0,0.00858675]
[1739342707620,0.00016182,96044.0,96043.0,0.16476675]
[1739342708019,0.00016182,96044.0,96043.0,0.18884343]
[1739342708221,0.00016182,96044.0,96043.0,0.00858675]
[1739342708623,0.00016182,96044.0,96040.0,0.15640765]
[1739342708871,0.00016182,96044.0,96043.0,0.00858675]
[1739342709055,0.00016182,96044.0,96040.0,0.15640765]
[1739342709578,0.00016182,96044.0,96041.0,0.00859108]
[1739342709782,0.00016182,96044.0,96041.0,0.00969964]
[1739342710381,0.00016182,96044.0,96040.0,0.00022365]
[1739342710827,0.156181,96042.0,96041.0,0.00859108]
[1739342711021,0.156181,96042.0,96041.0,0.00969964]
[1739342711226,0.156181,96042.0,96040.0,0.00022365]
[1739342711664,0.00016182,96044.0,96041.0,0.00859108]
[1739342711862,0.15634082,96044.0,96041.0,0.00969964]
[1739342712062,0.15634082,96044.0,96040.0,0.00022365]
[1739342712265,0.15634082,96044.0,96042.0,0.00858892]
[1739342712487,0.15634082,96044.0,96041.0,0.00859108]
[1739342712696,0.15634082,96044.0,96043.0,0.00969961]
[1739342713146,0.15634082,96044.0,96040.0,0.00022365]
[1739342713366,0.15634082,96044.0,96041.0,0.00859108]
[1739342713720,0.15634082,96044.0,96042.0,0.00111071]
[1739342713941,0.00016182,96044.0,96041.0,0.00859108]
[1739342714306,0.00016182,96044.0,96042.0,0.00111071]
[1739342714513,0.00016182,96044.0,96041.0,0.00859108]
[1739342714705,0.00016182,96044.0,96043.0,0.15618]
[1739342714904,0.00016182,96044.0,96043.0,0.15729286]
[1739342715736,0.00016182,96044.0,96043.0,0.16587961]
[1739342716186,0.00016182,96044.0,96043.0,0.24076675]
[1739342717336,0.00016182,96044.0,96043.0,0.28606675]
[1739342717721,0.00016182,96044.0,96043.0,0.36434519]
[1739342717926,0.00016182,96044.0,96043.0,0.36234519]
[1739342718126,0.00016182,96044.0,96043.0,0.36534519]
[1739342718335,0.00016182,96044.0,96043.0,0.36234519]
[1739342718541,0.00016182,96044.0,96043.0,0.29206675]
[1739342718746,0.00016182,96044.0,96043.0,0.28906675]
[1739342719168,0.00016182,96044.0,96043.0,0.29806675]
[1739342719596,0.00016182,96044.0,96043.0,0.28906675]
[1739342720080,0.00016182,96044.0,96043.0,0.29806675]
[1739342720566,0.00016182,96044.0,96043.0,0.28606675]
[1739342720818,0.00016182,96044.0,96043.0,0.2892904]
[1739342721023,0.00016182,96044.0,96043.0,0.2862904]
[1739342721225,0.00016182,96044.0,96043.0,0.2892904]
[1739342721987,0.00016182,96044.0,96043.0,0.2952904]
[1739342722386,0.00016182,96044.0,96043.0,0.36049121]
[1739342722749,0.00016182,96044.0,96043.0,0.36849121]
[1739342723170,0.00016182,96044.0,96043.0,0.2972904]
[1739342726500,0.00016182,96044.0,96043.0,0.0198104]
[1739342726781,0.00016182,96044.0,96043.0,0.01122365]
[1739342727195,0.10266547,96044.0,96043.0,0.00822365]
[1739342727385,0.28973014,96044.0,96043.0,0.00822365]
[1739342727558,0.28973014,96044.0,96043.0,0.01122365]
[1739342727727,0.28973014,96044.0,96043.0,0.00822365]
[1739342728147,0.28973014,96044.0,96043.0,0.00022365]
[1739342728352,0.28973014,96044.0,96043.0,0.00922365]
[1739342728989,0.28973014,96044.0,96043.0,0.00022365]
[1739342733611,0.44590814,96044.0,96043.0,0.00022365]
[1739342734467,0.45342814,96044.0,96043.0,0.00022365]
[1739342737253,0.47642814,96044.0,96043.0,0.00022365]
[1739342739075,0.47642814,96044.0,96043.0,0.00122365]
[1739342739719,0.47642814,96044.0,96043.0,0.00022365]
[1739342740073,0.47642814,96044.0,96043.0,0.00122365]
[1739342740269,0.47942814,96044.0,96043.0,0.00122365]
[1739342740547,0.47642814,96044.0,96043.0,0.00122365]
[1739342740916,0.47942814,96044.0,96043.0,0.00122365]
[1739342741096,0.47892172,96044.0,96043.0,0.00122365]
[1739342742192,0.63030346,96044.0,96043.0,0.00122365]
[1739342742394,0.62876584,96044.0,96043.0,0.00122365]
[1739342743199,0.62576584,96044.0,96043.0,0.00022365]
[1739342743390,0.63976584,96044.0,96043.0,0.00222365]
[1739342745362,0.63987234,96044.0,96043.0,0.00222365]
[1739342747052,0.63657731,96044.0,96043.0,0.00222365]
[1739342747884,0.49175456,96044.0,96043.0,0.00222365]
[1739342750259,0.023,96042.0,96040.0,0.00022365]
[1739342750462,0.43168665,96041.0,96040.0,0.00022365]
[1739342751355,0.43168665,96041.0,96040.0,0.00122365]
[1739342752280,0.51866839,96041.0,96040.0,0.00222365]
[1739342753257,0.51866839,96041.0,96040.0,0.00122365]
[1739342753471,0.52566839,96041.0,96040.0,0.00222365]
[1739342755066,0.53566839,96041.0,96040.0,0.00222365]
[1739342755932,0.90899839,96041.0,96040.0,0.00222365]
[1739342756358,0.89345839,96041.0,96040.0,0.00222365]
[1739342757897,0.67460839,96041.0,96040.0,0.00222365]
[1739342758649,0.70534708,96041.0,96040.0,0.00222365]
[1739342760133,0.72166417,96041.0,96040.0,0.00222365]
[1739342760334,0.71466417,96041.0,96040.0,0.00122365]
[1739342760534,0.57572417,96041.0,96040.0,0.00122365]
[1739342760720,0.56072417,96041.0,96040.0,0.00022365]
[1739342760888,0.82081517,96041.0,96040.0,0.00022365]
[1739342761097,0.84281517,96041.0,96040.0,0.00222365]
[1739342762929,0.84281517,96041.0,96040.0,6.5e-07]
[1739342763139,0.58272417,96041.0,96040.0,6.5e-07]
[1739342764129,0.66592152,96041.0,96040.0,6.5e-07]
[1739342764333,0.74882152,96041.0,96040.0,6.5e-07]
[1739342764540,0.74882152,96041.0,96017.0,0.08364526]
[1739342764541,0.30622,96018.0,96017.0,0.08355358]
[1739342764738,0.43172365,96018.0,96017.0,0.08355358]
[1739342764939,0.43172365,96018.0,96008.0,0.0792]
[1739342764940,0.156235,96009.0,96008.0,0.0792]
[1739342765143,0.163755,96009.0,96008.0,0.0792]
[1739342765364,0.26625865,96009.0,96008.0,0.0792]
[1739342765709,0.28147791,96009.0,96008.0,0.0792]
[1739342766296,0.28147791,96009.0,96008.0,0.07925532]
[1739342767750,0.28247791,96009.0,96008.0,0.08325532]
[1739342767947,0.30338929,96009.0,96008.0,0.08325532]
[1739342769054,0.30338929,96009.0,96008.0,0.08347897]
[1739342772687,0.30338929,96009.0,96008.0,0.00427897]
[1739342772863,0.47638929,96009.0,96008.0,0.00427897]
[1739342774128,0.47538929,96009.0,96008.0,0.00027897]
[1739342774535,0.47938929,96009.0,96008.0,0.00127897]
[1739342774687,0.51016524,96009.0,96008.0,0.00127897]
[1739342774906,0.58214698,96009.0,96008.0,0.00127897]
[1739342775231,0.57814698,96009.0,96008.0,0.00027897]
[1739342775426,0.59214698,96009.0,96008.0,0.00127897]
[1739342775841,0.64054698,96009.0,96008.0,0.00127897]
[1739342776192,1.32065298,96009.0,96008.0,0.00127897]
[1739342776435,0.64054698,96009.0,96008.0,0.00127897]
[1739342776594,1.59992698,96009.0,96008.0,0.00027897]
[1739342776798,1.05254298,96009.0,96008.0,0.00027897]
[1739342776994,0.92930498,96009.0,96008.0,0.00027897]
[1739342777254,0.93530498,96009.0,96008.0,0.00027897]
[1739342777421,0.92130498,96009.0,96008.0,0.00027897]
[1739342777895,0.94230498,96009.0,96008.0,0.00027897]
[1739342778485,0.95862732,96009.0,96008.0,0.00027897]
[1739342778727,0.83139232,96009.0,96008.0,0.00027897]
[1739342778931,0.66686932,96009.0,96008.0,0.00027897]
[1739342779717,0.62146932,96009.0,96008.0,0.00027897]
[1739342780061,0.63146932,96009.0,96008.0,0.00027897]
[1739342780266,0.60069337,96009.0,96008.0,0.00027897]
[1739342781031,0.59069337,96009.0,96008.0,0.00027897]
[1739342781163,0.59026462,96009.0,96008.0,0.00027897]